bitfinex/quotes_SOLUSD_20241226
["timestamp","ask_amount","ask_price","bid_price","bid_amount"]
[1735202777471,21.84222186,189.14,189.08,24.13848509]
[1735202777679,24.13848509,189.16,189.08,24.13848509]
[1735202778685,24.13848509,189.2,189.12,24.13848509]
[1735202780887,24.13848509,189.23,189.14,24.13848509]
[1735202781561,24.13848509,189.23,189.16,24.13848509]
[1735202781768,24.13848509,189.25,189.18,24.13848509]
[1735202781969,24.13848509,189.27,189.18,24.13848509]
[1735202782597,24.13848509,189.27,189.12,24.13848509]
[1735202782598,24.13848509,189.21,189.12,24.13848509]
[1735202782770,24.13848509,189.17,189.09,24.13848509]
[1735202783159,24.13848509,189.15,189.07,24.13848509]
[1735202783365,24.13848509,189.15,189.02,4.845]
[1735202783366,24.13848509,189.1,189.04,24.13848509]
[1735202783580,24.13848509,189.08,189.02,24.13848509]
[1735202783791,24.13848509,189.08,189.01,7.7152]
[1735202783792,23.776884,189.07,189.01,7.7152]
[1735202783999,24.13848509,189.08,189.0,24.13848509]
[1735202784199,20.0,189.17,189.04,24.13848509]
[1735202784490,20.0,189.17,189.01,0.7933802]
[1735202784491,24.13848509,189.15,189.08,24.13848509]
[1735202784892,23.776884,189.14,189.06,24.13848509]
[1735202785073,24.13848509,189.13,189.06,24.13848509]
[1735202785268,24.13848509,189.15,189.07,0.12549]
[1735202785586,24.13848509,189.15,189.06,24.13848509]
[1735202786864,24.13848509,189.13,189.04,24.13848509]
[1735202787064,24.13848509,189.11,189.02,24.13848509]
[1735202787383,24.13848509,189.13,189.04,24.13848509]
[1735202787574,24.13848509,189.13,189.06,24.13848509]
[1735202788179,24.13848509,189.15,189.06,24.13848509]
[1735202789492,24.13848509,189.13,189.06,24.13848509]
[1735202791198,24.13848509,189.07,189.0,24.13848509]
[1735202791385,24.13848509,189.07,188.98,24.13848509]
[1735202791581,24.13848509,189.05,188.98,24.13848509]
[1735202792581,24.13848509,189.07,188.98,24.13848509]
[1735202793096,24.13848509,189.07,188.99,0.12549]
[1735202793286,29.06858509,189.11,189.02,24.13848509]
[1735202793983,24.13848509,189.11,189.04,24.13848509]
[1735202795502,4.9301,189.16,189.04,24.13848509]
[1735202795503,24.13848509,189.15,189.08,24.13848509]
[1735202795987,52.92782275,189.31,189.05,0.12549]
[1735202795988,24.13848509,189.19,189.1,24.13848509]
[1735202796190,24.13848509,189.19,189.12,24.13848509]
[1735202796403,24.13848509,189.21,189.12,24.13848509]
[1735202797305,24.13848509,189.23,189.16,24.13848509]
[1735202798412,24.13848509,189.25,189.16,24.13848509]
[1735202800197,24.13848509,189.23,189.16,24.13848509]
[1735202801606,24.13848509,189.19,189.07,12.6558]
[1735202801811,24.13848509,189.17,189.09,24.13848509]
[1735202802306,23.776884,189.23,189.07,13.44884259]
[1735202802307,24.13848509,189.15,189.07,36.79428509]
[1735202802508,24.13848509,189.13,189.05,24.13848509]
[1735202803583,24.13848509,189.09,189.01,29.02598509]
[1735202803803,24.13848509,189.11,189.03,24.13848509]
[1735202804706,12.1096,189.27,189.1,24.13848509]
[1735202805010,24.13848509,189.23,189.14,24.13848509]
[1735202808295,12.1096,189.27,189.16,39.29783061]
[1735202808296,39.29783061,189.24,189.16,39.29783061]
[1735202809121,35.81271873,189.24,189.16,39.29783061]
[1735202813231,39.29783061,189.22,189.14,39.29783061]
[1735202813603,39.29783061,189.24,189.16,39.29783061]
[1735202814317,23.776884,189.25,189.16,39.29783061]
[1735202814528,63.07471461,189.25,189.16,39.29783061]
[1735202816617,63.07471461,189.25,189.14,39.29783061]
[1735202816618,39.29783061,189.21,189.14,39.29783061]
[1735202817445,39.29783061,189.21,189.12,39.29783061]
[1735202817639,36.990384,189.2,189.12,39.29783061]
[1735202817947,36.990384,189.2,189.1,39.29783061]
[1735202818139,39.29783061,189.24,189.17,39.29783061]
[1735202818739,20.0,189.24,189.17,39.29783061]
[1735202818964,39.29783061,189.26,189.17,39.29783061]
[1735202819679,39.29783061,189.26,189.19,39.29783061]
[1735202820580,39.29783061,189.24,189.17,39.29783061]
[1735202820732,4.5851,189.27,189.13,39.29783061]
[1735202820733,39.29783061,189.22,189.13,39.29783061]
[1735202820931,39.29783061,189.2,189.13,39.29783061]
[1735202821138,39.29783061,189.22,189.16,0.12549]
[1735202821375,59.29783061,189.26,189.19,39.29783061]
[1735202821533,39.29783061,189.22,189.15,39.29783061]
[1735202821876,39.29783061,189.22,189.13,39.29783061]
[1735202822869,39.29783061,189.2,189.13,39.29783061]
[1735202824662,23.776884,189.21,189.13,39.29783061]
[1735202825199,39.29783061,189.2,189.13,39.29783061]
[1735202825686,39.29783061,189.2,189.14,0.12549]
[1735202825843,39.29783061,189.22,189.15,39.29783061]
[1735202826483,39.29783061,189.24,189.15,39.29783061]
[1735202829989,2.14350226,189.3,189.21,39.29783061]
[1735202830232,32.8123806,189.31,189.14,14.01049889]
[1735202830233,19.6059806,189.31,189.23,24.16495219]
[1735202830366,24.16495219,189.3,189.21,24.16495219]
[1735202830686,24.16495219,189.28,189.21,24.16495219]
[1735202831262,19.6059806,189.31,189.26,24.16495219]
[1735202832274,24.16495219,189.34,189.24,24.16495219]
[1735202832596,24.16495219,189.32,189.24,24.16495219]
[1735202833371,24.16495219,189.34,189.26,24.16495219]
[1735202833994,8.1328,189.36,189.28,24.16495219]
[1735202834181,28.77005219,189.38,189.3,24.16495219]
[1735202834385,24.16495219,189.4,189.32,24.16495219]
[1735202835510,24.16495219,189.42,189.34,24.16495219]
[1735202836507,24.16495219,189.44,189.36,24.16495219]
[1735202837197,24.16495219,189.46,189.36,24.16495219]
[1735202837492,24.16495219,189.44,189.36,24.16495219]
[1735202837796,24.16495219,189.48,189.39,0.12549]
[1735202837994,24.16495219,189.48,189.38,24.16495219]
[1735202838379,24.16495219,189.46,189.38,24.16495219]
[1735202838581,24.16495219,189.48,189.38,24.16495219]
[1735202838885,24.16495219,189.48,189.4,24.16495219]
[1735202840074,24.16495219,189.44,189.36,24.16495219]
[1735202840278,24.16495219,189.4,189.32,24.16495219]
[1735202840482,24.16495219,189.38,189.3,24.16495219]
[1735202840787,24.16495219,189.34,189.26,31.86255219]
[1735202841089,24.16495219,189.34,189.26,24.16495219]
[1735202841499,24.16495219,189.36,189.28,24.16495219]
[1735202841701,23.776884,189.37,189.3,24.16495219]
[1735202841891,12.9253,189.42,189.34,24.16495219]
[1735202842219,24.16495219,189.43,189.36,24.16495219]
[1735202842519,12.9253,189.47,189.4,24.16495219]
[1735202842520,29.19235219,189.47,189.4,24.16495219]
[1735202842802,24.16495219,189.45,189.38,24.16495219]
[1735202843106,24.16495219,189.45,189.36,24.16495219]
[1735202843292,24.16495219,189.45,189.35,0.12549]
[1735202843499,24.16495219,189.45,189.36,24.16495219]
[1735202844720,23.776884,189.44,189.36,24.16495219]
[1735202845003,23.776884,189.44,189.38,24.16495219]
[1735202846407,23.776884,189.44,189.36,24.16495219]
[1735202846600,24.16495219,189.45,189.36,24.16495219]
[1735202846801,24.16495219,189.43,189.34,44.16495219]
[1735202847432,24.16495219,189.45,189.36,24.16495219]
[1735202847711,24.16495219,189.45,189.38,24.16495219]
[1735202848713,24.16495219,189.45,189.36,24.16495219]
[1735202849530,23.776884,189.44,189.36,24.16495219]
[1735202851015,23.776884,189.44,189.38,24.16495219]
[1735202851323,23.776884,189.44,189.36,24.16495219]
[1735202851496,24.16495219,189.45,189.36,24.16495219]
[1735202851895,24.16495219,189.47,189.38,24.16495219]
[1735202852204,23.776884,189.46,189.38,24.16495219]
[1735202853100,24.16495219,189.45,189.38,24.16495219]
[1735202853821,24.16495219,189.45,189.34,20.0]
[1735202853822,24.16495219,189.45,189.36,24.16495219]
[1735202854509,23.776884,189.42,189.34,24.16495219]
[1735202854699,24.16495219,189.41,189.34,24.16495219]
[1735202855205,23.776884,189.42,189.34,24.16495219]
[1735202855418,24.16495219,189.45,189.36,24.16495219]
[1735202855624,24.16495219,189.47,189.38,24.16495219]
[1735202856135,24.16495219,189.43,189.36,24.16495219]
[1735202856303,24.16495219,189.39,189.32,24.16495219]
[1735202856517,24.16495219,189.39,189.3,24.16495219]
[1735202857047,24.16495219,189.39,189.32,24.16495219]
[1735202857354,12.893,189.42,189.34,24.16495219]
[1735202858234,12.893,189.42,189.36,24.16495219]
[1735202858627,24.16495219,189.45,189.36,24.16495219]
[1735202858818,24.16495219,189.45,189.38,24.16495219]
[1735202859016,37.05795219,189.47,189.38,24.16495219]
[1735202859227,28.93695219,189.47,189.38,24.16495219]
[1735202861319,24.16495219,189.49,189.4,24.16495219]
[1735202861647,24.16495219,189.49,189.42,24.16495219]
[1735202862319,32.28595219,189.51,189.42,24.16495219]
[1735202862854,24.16495219,189.51,189.42,24.16495219]
[1735202863145,24.16495219,189.53,189.46,24.16495219]
[1735202863353,8.121,189.55,189.46,24.16495219]
[1735202863354,32.28595219,189.55,189.46,24.16495219]
[1735202864440,24.16495219,189.53,189.44,24.16495219]
[1735202864653,24.16495219,189.51,189.44,24.16495219]
[1735202865754,24.16495219,189.53,189.46,24.16495219]
[1735202868557,8.121,189.55,189.48,24.16495219]
[1735202868558,24.16495219,189.55,189.48,24.16495219]
[1735202869538,4.772,189.58,189.48,24.16495219]
[1735202869725,28.93695219,189.58,189.48,24.16495219]
[1735202869926,24.16495219,189.56,189.48,24.16495219]
[1735202870727,23.776884,189.53,189.46,24.16495219]
[1735202872032,23.776884,189.51,189.44,24.16495219]
[1735202872374,23.776884,189.47,189.4,24.16495219]
[1735202872662,24.16495219,189.46,189.38,24.16495219]
[1735202873655,23.776884,189.47,189.4,24.16495219]
[1735202874856,24.16495219,189.46,189.38,24.16495219]
[1735202875361,24.16495219,189.48,189.4,24.16495219]
[1735202875533,24.16495219,189.5,189.42,24.16495219]
[1735202876666,24.16495219,189.48,189.4,24.16495219]
[1735202876965,24.16495219,189.46,189.38,24.16495219]
[1735202877264,24.16495219,189.46,189.4,24.16495219]
[1735202877447,24.16495219,189.48,189.4,24.16495219]
[1735202877640,23.776884,189.47,189.4,24.16495219]
[1735202877858,24.16495219,189.46,189.38,24.16495219]
[1735202878044,24.16495219,189.48,189.4,24.16495219]
[1735202878561,23.776884,189.47,189.4,24.16495219]
[1735202878763,24.16495219,189.46,189.38,24.16495219]
[1735202878963,24.16495219,189.44,189.36,24.16495219]
[1735202879170,24.16495219,189.42,189.34,24.16495219]
[1735202879835,24.16495219,189.46,189.38,24.16495219]
[1735202880365,23.776884,189.47,189.4,24.16495219]
[1735202880570,35.4276137,189.5,189.42,24.16495219]
[1735202880864,24.16495219,189.5,189.42,24.16495219]
[1735202882583,24.16495219,189.48,189.4,24.16495219]
[1735202883472,24.16495219,189.46,189.38,24.16495219]
[1735202883676,24.16495219,189.44,189.36,24.16495219]
[1735202883966,24.16495219,189.42,189.34,24.16495219]
[1735202884547,29.10565219,189.44,189.36,24.16495219]
[1735202885040,24.16495219,189.42,189.34,24.16495219]
[1735202886068,36.70345219,189.44,189.36,24.16495219]
[1735202886267,15.22907321,189.47,189.4,24.16495219]
[1735202886477,24.16495219,189.48,189.4,24.16495219]
[1735202888046,7.5978,189.49,189.42,24.16495219]
[1735202888777,24.16495219,189.48,189.4,24.16495219]
[1735202889461,7.5978,189.49,189.42,24.16495219]
[1735202890042,29.10565219,189.5,189.42,24.16495219]
[1735202890377,4.9407,189.5,189.44,24.16495219]
[1735202890679,24.16495219,189.48,189.38,24.16495219]
[1735202890973,24.16495219,189.41,189.33,24.16495219]
[1735202893468,24.16495219,189.41,189.35,24.16495219]
[1735202894752,24.16495219,189.41,189.33,24.16495219]
[1735202895480,24.16495219,189.39,189.33,24.16495219]
[1735202895775,24.16495219,189.39,189.29,8.1437]
[1735202895776,24.16495219,189.37,189.29,24.16495219]
[1735202895979,23.776884,189.34,189.27,24.16495219]
[1735202896381,24.16495219,189.31,189.23,24.16495219]
[1735202896748,23.776884,189.32,189.25,24.16495219]
[1735202897162,7.4902,189.33,189.27,24.16495219]
[1735202899082,24.16495219,189.31,189.23,24.16495219]
[1735202899382,7.4902,189.33,189.25,24.16495219]
[1735202899383,31.65515219,189.33,189.25,24.16495219]
[1735202899988,24.16495219,189.31,189.22,24.16495219]
[1735202901094,23.776884,189.3,189.24,24.16495219]
[1735202901262,23.776884,189.3,189.22,24.16495219]
[1735202901463,23.776884,189.28,189.22,24.16495219]
[1735202901877,23.776884,189.28,189.2,24.16495219]
[1735202902088,23.776884,189.26,189.2,24.16495219]
[1735202902789,23.776884,189.26,189.12,4.8148]
[1735202902790,23.776884,189.26,189.18,24.16495219]
[1735202903086,23.776884,189.26,189.2,24.16495219]
[1735202903266,4.6419,189.3,189.24,24.16495219]
[1735202903475,24.6419,189.3,189.24,24.16495219]
[1735202903661,4.6419,189.3,189.24,24.16495219]
[1735202903865,28.80685219,189.35,189.28,24.16495219]
[1735202904179,19.6002221,189.36,189.32,24.16495219]
[1735202906501,19.6002221,189.36,189.3,24.16495219]
[1735202906995,19.6002221,189.36,189.32,24.16495219]
[1735202907161,4.6419,189.4,189.34,24.16495219]
[1735202908477,24.16495219,189.39,189.32,24.16495219]
[1735202908679,24.16495219,189.39,189.26,13.2093]
[1735202908680,24.16495219,189.39,189.3,24.16495219]
[1735202908974,24.16495219,189.39,189.32,24.16495219]
[1735202909183,4.6419,189.4,189.32,24.16495219]
[1735202909689,4.6419,189.4,189.34,24.16495219]
[1735202909995,4.6419,189.44,189.38,24.16495219]
[1735202910199,4.6419,189.44,189.35,0.79203673]
[1735202910200,31.65515219,189.47,189.4,24.16495219]
[1735202910494,7.4902,189.47,189.4,24.16495219]
[1735202910790,28.80685219,189.49,189.42,24.16495219]
[1735202911169,4.6419,189.49,189.42,24.16495219]
[1735202911399,4.6419,189.49,189.44,24.16495219]
[1735202915107,24.16495219,189.51,189.44,24.16495219]
[1735202917915,24.16495219,189.53,189.46,24.16495219]
[1735202918213,12.6713,189.54,189.47,24.16495219]
[1735202918787,24.16495219,189.58,189.51,24.16495219]
[1735202918986,12.6713,189.59,189.53,24.16495219]
[1735202919513,36.83625219,189.59,189.52,24.16495219]
[1735202919709,24.16495219,189.58,189.5,24.16495219]
[1735202919896,24.16495219,189.56,189.48,24.16495219]
[1735202920300,24.16495219,189.58,189.5,24.16495219]
[1735202920616,23.776884,189.57,189.5,24.16495219]
[1735202921811,24.16495219,189.54,189.46,24.16495219]
[1735202922312,24.16495219,189.54,189.48,24.16495219]
[1735202923018,12.6713,189.59,189.44,24.16495219]
[1735202923019,24.16495219,189.52,189.44,24.16495219]
[1735202923220,24.16495219,189.5,189.42,24.16495219]
[1735202924889,47.94183619,189.51,189.44,24.16495219]
[1735202925087,13.1884,189.56,189.46,24.16495219]
[1735202925088,24.16495219,189.55,189.46,24.16495219]
[1735202925802,24.16495219,189.53,189.46,24.16495219]
[1735202926118,24.16495219,189.51,189.44,24.16495219]
[1735202927727,24.16495219,189.53,189.44,24.16495219]
[1735202927895,24.16495219,189.53,189.46,24.16495219]
[1735202928616,24.16495219,189.53,189.42,13.98905683]
[1735202928617,23.776884,189.46,189.32,7.6373]
[1735202928796,24.16495219,189.44,189.35,24.16495219]
[1735202929991,24.16495219,189.46,189.37,24.16495219]
[1735202930319,24.16495219,189.48,189.39,24.16495219]
[1735202930518,23.776884,189.47,189.39,24.16495219]
[1735202930711,24.16495219,189.46,189.37,24.16495219]
[1735202931404,24.16495219,189.46,189.39,24.16495219]
[1735202931926,24.16495219,189.54,189.32,7.6373]
[1735202931927,15.80109864,189.67,189.56,20.0]
[1735202932119,15.80109864,189.67,189.64,24.16495219]
[1735202932299,15.80109864,189.67,189.62,24.16495219]
[1735202932501,24.16495219,189.66,189.52,20.79103001]
[1735202932700,24.16495219,189.64,189.56,24.16495219]
[1735202933005,15.80109864,189.67,189.58,24.16495219]
[1735202933316,36.63665219,189.68,189.58,24.16495219]
[1735202933519,24.16495219,189.66,189.58,24.16495219]
[1735202934095,12.4717,189.68,189.58,24.16495219]
[1735202934396,47.94183619,189.67,189.58,24.16495219]
[1735202935516,47.94183619,189.67,189.6,24.16495219]
[1735202936197,24.16495219,189.64,189.55,0.79114185]
[1735202936424,24.16495219,189.57,189.49,24.16495219]
[1735202936601,24.16495219,189.59,189.51,24.16495219]
[1735202937532,24.16495219,189.57,189.52,0.12549]
[1735202937703,24.16495219,189.55,189.52,0.12549]
[1735202937904,24.16495219,189.56,189.48,24.29044219]
[1735202938121,24.16495219,189.56,189.5,0.12549]
[1735202938326,24.16495219,189.57,189.5,24.29044219]
[1735202939100,24.16495219,189.56,189.5,0.91671228]
[1735202939300,24.16495219,189.51,189.4,4.5904]
[1735202939524,24.16495219,189.44,189.37,24.16495219]
[1735202939728,24.16495219,189.44,189.36,24.16495219]
[1735202939903,24.16495219,189.44,189.37,24.95667009]
[1735202940097,24.16495219,189.45,189.38,24.16495219]
[1735202940309,24.16495219,189.45,189.39,0.91718894]
[1735202940510,23.776884,189.53,189.36,24.16495219]
[1735202940511,24.16495219,189.44,189.36,24.16495219]
[1735202940799,24.16495219,189.43,189.36,24.16495219]
[1735202941000,24.16495219,189.43,189.37,0.12549]
[1735202941303,24.16495219,189.47,189.41,0.12549]
[1735202941528,24.16495219,189.48,189.41,0.91711785]
[1735202941726,24.16495219,189.47,189.41,0.91711785]
[1735202942324,24.16495219,189.46,189.41,0.12549]
[1735202942532,24.16495219,189.45,189.38,24.956585]
[1735202942732,24.16495219,189.45,189.38,0.79163281]
[1735202943022,23.776884,189.53,189.33,24.16495219]
[1735202943023,24.16495219,189.4,189.33,24.16495219]
[1735202943228,24.16495219,189.38,189.31,24.16495219]
[1735202943427,24.16495219,189.37,189.3,0.79193962]
[1735202944026,24.16495219,189.32,189.25,37.37425219]
[1735202944229,24.16495219,189.34,189.27,24.16495219]
[1735202944533,24.16495219,189.35,189.28,24.16495219]
[1735202944706,24.16495219,189.35,189.27,24.95714727]
[1735202945032,24.16495219,189.35,189.28,0.12549]
[1735202945406,24.16495219,189.36,189.28,24.29044219]
[1735202945804,24.16495219,189.34,189.28,0.12549]
[1735202947234,24.16495219,189.35,189.28,24.29044219]
[1735202947601,24.16495219,189.34,189.28,0.12549]
[1735202947802,24.16495219,189.35,189.28,24.29044219]
[1735202948011,24.16495219,189.34,189.28,0.12549]
[1735202948532,24.16495219,189.35,189.28,0.12549]
[1735202948737,24.16495219,189.34,189.28,0.12549]
[1735202948916,24.16495219,189.35,189.28,0.12549]
[1735202949112,24.16495219,189.36,189.29,24.16495219]
[1735202949336,24.16495219,189.4,189.33,24.16495219]
[1735202950005,24.16495219,189.4,189.33,0.12549]
[1735202950209,24.16495219,189.45,189.37,24.16495219]
[1735202950442,24.16495219,189.43,189.37,0.12549]
[1735202950610,24.16495219,189.42,189.36,0.12549]
[1735202950809,24.16495219,189.45,189.29,0.79185875]
[1735202951414,23.776884,189.44,189.3,0.12549]
[1735202952030,24.16495219,189.37,189.31,0.12549]
[1735202952406,24.16495219,189.38,189.32,0.79203546]
[1735202954132,24.16495219,189.36,189.3,0.12549]
[1735202954646,24.16495219,189.36,189.28,24.95703008]
[1735202954647,20.0,189.4,189.28,24.95703008]
[1735202954819,24.16495219,189.41,189.35,0.12549]
[1735202955015,24.16495219,189.43,189.35,0.91741699]
[1735202955627,24.16495219,189.43,189.37,0.12549]
[1735202955935,24.16495219,189.43,189.37,0.91732507]
[1735202958637,24.16495219,189.45,189.39,0.12549]
[1735202958941,24.16495219,189.49,189.41,0.12549]
[1735202959232,24.16495219,189.49,189.41,0.91705571]
[1735202960144,24.16495219,189.47,189.41,0.91705571]
[1735202960347,24.16495219,189.49,189.41,0.91705571]
[1735202960556,24.16495219,189.51,189.43,0.12549]
[1735202960839,24.16495219,189.53,189.45,0.12549]
[1735202961024,24.16495219,189.53,189.45,0.91692685]
[1735202962436,24.16495219,189.51,189.45,0.91692685]
[1735202963244,24.16495219,189.51,189.44,0.12549]
[1735202963545,24.16495219,189.47,189.38,24.16495219]
[1735202963751,24.16495219,189.45,189.37,5.56170475]
[1735202964045,24.16495219,189.43,189.37,4.7702]
[1735202965635,24.16495219,189.43,189.38,0.12549]
[1735202966622,24.16495219,189.45,189.38,0.12549]
[1735202967946,24.16495219,189.45,189.38,24.29044219]
[1735202968144,24.16495219,189.47,189.38,25.08222136]
[1735202968845,24.16495219,189.45,189.38,25.08222136]
[1735202969020,24.16495219,189.43,189.38,0.12549]
[1735202969426,24.16495219,189.45,189.38,0.12549]
[1735202969627,24.16495219,189.45,189.38,25.08220651]
[1735202969856,24.16495219,189.47,189.38,25.08220651]
[1735202970155,24.16495219,189.49,189.41,0.12549]
[1735202970387,24.16495219,189.49,189.43,0.12549]
[1735202970659,24.16495219,189.49,189.43,0.91701606]
[1735202970861,24.16495219,189.49,189.42,24.16495219]
[1735202970862,24.16495219,189.49,189.41,0.12549]
[1735202972762,24.16495219,189.45,189.38,24.95663302]
[1735202973057,24.16495219,189.45,189.38,0.79168083]
[1735202973463,24.16495219,189.45,189.39,0.12549]
[1735202973754,24.16495219,189.47,189.41,0.12549]
[1735202975068,24.16495219,189.47,189.39,0.12549]
[1735202976060,24.16495219,189.45,189.38,24.95662868]
[1735202976237,24.16495219,189.45,189.38,0.79167649]
[1735202976742,24.16495219,189.45,189.39,0.12549]
[1735202977969,24.16495219,189.45,189.38,0.12549]
[1735202978365,24.16495219,189.47,189.38,25.08222254]
[1735202978658,24.16495219,189.45,189.38,25.08222254]
[1735202979770,24.16495219,189.47,189.38,25.08222254]
[1735202980363,24.16495219,189.49,189.43,0.12549]
[1735202980574,24.16495219,189.51,189.43,0.91701339]
[1735202981279,24.16495219,189.49,189.43,0.91701339]
[1735202981445,24.16495219,189.47,189.4,24.95653237]
[1735202982149,24.16495219,189.47,189.41,0.12549]
[1735202984654,24.16495219,189.45,189.41,0.12549]
[1735202984855,24.16495219,189.45,189.39,0.12549]
[1735202986462,24.16495219,189.47,189.41,0.12549]
[1735202987788,23.776884,189.52,189.35,20.7936]
[1735202987789,24.16495219,189.43,189.36,0.79170652]
[1735202987987,24.16495219,189.41,189.35,7.5908]
[1735202988293,24.16495219,189.37,189.31,6.757]
[1735202988660,24.16495219,189.37,189.32,0.12549]
[1735202989077,24.16495219,189.37,189.31,6.757]
[1735202989665,4.169,189.44,189.29,5.19633371]
[1735202989666,24.16495219,189.35,189.29,5.19633371]
[1735202990090,17.3663,189.44,189.31,24.16495219]
[1735202990091,23.776884,189.43,189.31,24.16495219]
[1735202990397,24.16495219,189.42,189.36,0.12549]
[1735202990575,24.16495219,189.42,189.36,0.91736424]
[1735202991074,17.3636,189.48,189.38,0.12549]
[1735202991075,24.16495219,189.45,189.38,0.12549]
[1735202991260,24.16495219,189.45,189.38,0.91721115]
[1735202991957,24.16495219,189.43,189.38,0.91721115]
[1735202992160,24.16495219,189.45,189.38,25.08216334]
[1735202992383,24.16495219,189.45,189.38,0.91721115]
[1735202992760,24.16495219,189.44,189.38,0.91721115]
[1735202994887,4.169,189.48,189.38,0.91721115]
[1735202994888,24.16495219,189.46,189.4,0.12549]
[1735202995074,24.16495219,189.49,189.42,24.29044219]
[1735202995387,24.16495219,189.49,189.44,0.12549]
[1735202995966,24.16495219,189.47,189.4,0.79157588]
[1735202996359,24.16495219,189.47,189.41,0.12549]
[1735202996861,20.0,189.52,189.41,0.12549]
[1735202997077,24.16495219,189.49,189.43,0.12549]
[1735202998785,4.169,189.53,189.43,0.12549]
[1735202998786,24.16495219,189.47,189.43,0.12549]
[1735202998992,24.16495219,189.45,189.39,4.4044]
[1735202999418,24.16495219,189.47,189.4,0.79171457]
[1735202999596,24.16495219,189.47,189.41,0.12549]
[1735202999797,24.16495219,189.47,189.43,0.12549]
[1735203000404,24.16495219,189.47,189.4,0.79163866]
[1735203000715,24.16495219,189.49,189.41,24.29044219]
[1735203000918,24.16495219,189.47,189.43,0.12549]
[1735203001219,24.16495219,189.47,189.4,24.95646827]
[1735203001220,24.16495219,189.47,189.4,0.79151608]
[1735203001399,24.16495219,189.47,189.41,0.12549]
[1735203002013,24.16495219,189.5,189.43,0.12549]
[1735203002200,24.16495219,189.5,189.45,0.12549]
[1735203002398,24.16495219,189.48,189.41,24.95647591]
[1735203002719,24.16495219,189.47,189.41,0.79160149]
[1735203003092,24.16495219,189.47,189.43,0.12549]
[1735203003289,24.16495219,189.47,189.43,0.91708292]
[1735203003620,24.16495219,189.49,189.43,0.91708292]
[1735203004817,24.16495219,189.51,189.43,0.91708292]
[1735203005013,23.92165247,189.51,189.45,0.12549]
[1735203005229,24.16495219,189.53,189.45,0.91689028]
[1735203006022,24.16495219,189.53,189.45,25.08184247]
[1735203006417,24.16495219,189.54,189.47,0.12549]
[1735203006603,24.16495219,189.54,189.47,0.91680868]
[1735203007206,24.16495219,189.51,189.44,51.80361893]
[1735203007406,24.16495219,189.51,189.46,0.79146674]
[1735203007628,24.16495219,189.53,189.47,0.12549]
[1735203008407,24.16495219,189.51,189.46,0.79146674]
[1735203008607,24.16495219,189.51,189.44,31.01215219]
[1735203008806,24.16495219,189.49,189.45,0.12549]
[1735203009019,24.16495219,189.49,189.43,0.79147488]
[1735203009327,24.16495219,189.47,189.4,7.6387515]
[1735203009697,24.16495219,189.44,189.39,4.4044]
[1735203009899,24.16495219,189.44,189.36,31.80396194]
[1735203010218,24.16495219,189.46,189.38,24.16495219]
[1735203010466,24.16495219,189.46,189.39,0.79170804]
[1735203010723,24.16495219,189.48,189.4,24.16495219]
[1735203010912,24.16495219,189.48,189.41,0.91716284]
[1735203011530,24.16495219,189.46,189.4,0.12549]
[1735203011832,24.16495219,189.43,189.36,31.01215219]
[1735203012127,24.16495219,189.44,189.37,0.12549]
[1735203012505,24.16495219,189.44,189.36,31.8040494]
[1735203013131,24.16495219,189.44,189.37,0.12549]
[1735203014025,24.16495219,189.42,189.36,7.63909721]
[1735203014336,24.16495219,189.4,189.33,24.16495219]
[1735203014517,24.16495219,189.42,189.34,24.95695117]
[1735203014700,24.16495219,189.42,189.35,0.12549]
[1735203015222,4.3859,189.51,189.4,0.12549]
[1735203015526,15.39520913,189.52,189.43,24.16495219]
[1735203015728,24.16495219,189.51,189.44,0.12549]
[1735203015902,24.16495219,189.51,189.45,0.79153277]
[1735203016926,24.16495219,189.53,189.46,0.12549]
[1735203017102,24.16495219,189.55,189.48,0.12549]
[1735203017519,24.16495219,189.54,189.48,0.12549]
[1735203017833,24.16495219,189.52,189.44,24.16495219]
[1735203018015,24.16495219,189.52,189.45,0.12549]
[1735203018214,24.16495219,189.52,189.45,45.08196967]
[1735203021633,24.16495219,189.52,189.45,20.91701748]
[1735203021808,24.16495219,189.52,189.45,45.08196967]
[1735203022137,23.776884,189.57,189.45,20.91701748]
[1735203022310,15.06705692,189.53,189.45,35.8585844]
[1735203022712,15.06705692,189.53,189.46,0.12549]
[1735203023220,15.06705692,189.51,189.43,15.06705692]
[1735203023416,15.06705692,189.48,189.4,26.37035692]
[1735203023818,15.06705692,189.48,189.41,0.12549]
[1735203024135,24.11415386,189.5,189.43,0.12549]
[1735203024844,24.11415386,189.5,189.45,0.12549]
[1735203026419,24.11415386,189.5,189.43,20.0]
[1735203026621,24.11415386,189.5,189.42,24.11415386]
[1735203027747,24.11415386,189.5,189.43,0.12549]
[1735203033044,24.11415386,189.52,189.45,0.12549]
[1735203033244,32.97747259,189.59,189.46,24.11415386]
[1735203033422,24.11415386,189.53,189.47,0.12549]
[1735203033929,24.11415386,189.52,189.46,0.12549]